bitfinex/quotes_BTCUSD_20240719
["timestamp","ask_amount","ask_price","bid_price","bid_amount"]
[1721394622064,1.70376502,64416.0,64410.0,0.000913]
[1721394622281,2.05124602,64416.0,64410.0,0.000913]
[1721394622486,2.12005193,64416.0,64410.0,0.000913]
[1721394622695,1.85478392,64416.0,64410.0,0.000913]
[1721394623347,1.84078392,64416.0,64410.0,0.000913]
[1721394623680,1.76742189,64416.0,64410.0,0.000913]
[1721394623855,1.79555316,64416.0,64410.0,0.000913]
[1721394624517,1.64120359,64416.0,64410.0,0.000913]
[1721394624866,1.25982259,64416.0,64410.0,0.000913]
[1721394625077,1.16591501,64416.0,64410.0,0.000913]
[1721394625282,1.17991501,64416.0,64410.0,0.000913]
[1721394625690,1.15191501,64416.0,64410.0,0.000913]
[1721394625896,0.77127022,64416.0,64410.0,0.000913]
[1721394626101,0.78527022,64416.0,64410.0,0.000913]
[1721394626311,1.25010079,64416.0,64410.0,0.000913]
[1721394626511,1.26410079,64416.0,64410.0,0.000913]
[1721394626715,0.77113895,64416.0,64410.0,0.000913]
[1721394626946,0.79912933,64416.0,64410.0,0.000913]
[1721394627143,0.78512933,64416.0,64410.0,0.000913]
[1721394627343,1.09561033,64416.0,64410.0,0.000913]
[1721394627933,0.78512933,64416.0,64410.0,0.000913]
[1721394628547,0.79912933,64416.0,64410.0,0.000913]
[1721394628952,1.24762881,64416.0,64410.0,0.000913]
[1721394629721,1.32652881,64416.0,64410.0,0.000913]
[1721394629922,1.32654374,64416.0,64410.0,0.000913]
[1721394630124,1.34954374,64416.0,64410.0,0.000913]
[1721394630325,1.66002474,64416.0,64410.0,0.000913]
[1721394631383,1.63202474,64416.0,64410.0,0.000913]
[1721394631677,1.64602474,64416.0,64410.0,0.000913]
[1721394631874,1.63202474,64416.0,64410.0,0.000913]
[1721394632083,1.32154374,64416.0,64410.0,0.000913]
[1721394632289,1.33554374,64416.0,64410.0,0.000913]
[1721394632495,1.64602474,64416.0,64410.0,0.000913]
[1721394633110,1.64605793,64416.0,64410.0,0.000913]
[1721394633334,1.63205793,64416.0,64410.0,0.000913]
[1721394633540,2.18023893,64416.0,64410.0,0.000913]
[1721394633740,2.27403856,64416.0,64410.0,0.000913]
[1721394634051,0.87687456,64416.0,64410.0,0.000913]
[1721394634257,1.93362853,64411.0,64410.0,0.000913]
[1721394634458,0.776275,64410.0,64409.0,5.4e-07]
[1721394634668,1.39499924,64410.0,64409.0,5.4e-07]
[1721394634875,1.39220524,64410.0,64409.0,5.4e-07]
[1721394635075,0.43767524,64410.0,64409.0,5.4e-07]
[1721394635409,0.72014674,64410.0,64409.0,5.4e-07]
[1721394635584,0.05103621,64416.0,64409.0,5.4e-07]
[1721394635585,0.310487,64415.0,64409.0,5.4e-07]
[1721394635821,0.310497,64413.0,64410.0,0.0068157]
[1721394636033,0.155254,64411.0,64409.0,5.4e-07]
[1721394636284,0.158049,64410.0,64409.0,5.4e-07]
[1721394636522,0.155255,64410.0,64409.0,5.4e-07]
[1721394637421,0.155255,64410.0,64409.0,0.00681728]
[1721394637911,0.479765,64410.0,64409.0,0.00681728]
[1721394638124,0.95865674,64410.0,64409.0,0.00681728]
[1721394638428,0.95865674,64410.0,64409.0,5.4e-07]
[1721394638637,1.11367823,64410.0,64409.0,5.4e-07]
[1721394639076,1.08557251,64410.0,64409.0,5.4e-07]
[1721394639316,1.1137041,64410.0,64409.0,5.4e-07]
[1721394640045,1.4242141,64410.0,64409.0,5.4e-07]
[1721394640311,1.6924141,64410.0,64409.0,5.4e-07]
[1721394640743,2.0029241,64410.0,64409.0,5.4e-07]
[1721394640965,2.08170215,64410.0,64409.0,5.4e-07]
[1721394641176,2.33438995,64410.0,64409.0,5.4e-07]
[1721394641400,2.52588995,64410.0,64409.0,5.4e-07]
[1721394642216,2.52581957,64410.0,64409.0,5.4e-07]
[1721394643565,2.87181564,64410.0,64409.0,5.4e-07]
[1721394645301,2.76308056,64410.0,64409.0,5.4e-07]
[1721394645506,2.87213348,64410.0,64409.0,5.4e-07]
[1721394645948,2.87213542,64410.0,64409.0,5.4e-07]
[1721394646766,1.397448,64403.0,64402.0,0.000913]
[1721394646964,2.2836116,64403.0,64402.0,0.000913]
[1721394647577,1.087142,64389.0,64388.0,0.009174]
[1721394647710,1.26964506,64389.0,64388.0,0.00908375]
[1721394647920,1.36964506,64389.0,64388.0,0.00908375]
[1721394648318,1.73573668,64389.0,64388.0,0.00908375]
[1721394648524,1.87968059,64389.0,64388.0,0.00908375]
[1721394648730,1.77046765,64389.0,64388.0,0.00908375]
[1721394649389,2.14023994,64389.0,64388.0,0.00908375]
[1721394649618,2.14023994,64389.0,64388.0,4.9e-07]
[1721394649826,2.12623994,64389.0,64388.0,4.9e-07]
[1721394650177,2.14023994,64389.0,64388.0,4.9e-07]
[1721394650380,2.30858951,64389.0,64388.0,4.9e-07]
[1721394650984,2.29458951,64389.0,64388.0,4.9e-07]
[1721394651427,2.30858951,64389.0,64388.0,4.9e-07]
[1721394651585,2.29470085,64389.0,64388.0,4.9e-07]
[1721394652641,2.26346677,64389.0,64388.0,4.9e-07]
[1721394653602,2.24946677,64389.0,64388.0,4.9e-07]
[1721394654717,2.29470113,64389.0,64388.0,4.9e-07]
[1721394654925,2.37120113,64389.0,64388.0,4.9e-07]
[1721394655545,2.37120113,64389.0,64382.0,0.009174]
[1721394655546,1.397884,64383.0,64382.0,0.009174]
[1721394655762,2.00592936,64383.0,64382.0,0.009174]
[1721394656190,2.05119891,64383.0,64382.0,0.009174]
[1721394656546,2.00592936,64383.0,64382.0,0.009174]
[1721394656742,2.22742936,64383.0,64382.0,0.009174]
[1721394657749,2.24143837,64383.0,64382.0,0.009174]
[1721394658267,2.30713837,64383.0,64382.0,0.009174]
[1721394658481,2.19475589,64383.0,64382.0,0.009174]
[1721394658659,1.88411489,64383.0,64382.0,0.009174]
[1721394658916,1.20297389,64383.0,64382.0,0.009174]
[1721394659123,0.76933289,64383.0,64382.0,0.009174]
[1721394659435,0.98713693,64383.0,64382.0,0.009174]
[1721394659640,0.18332,64383.0,64382.0,0.009174]
[1721394659889,0.804602,64383.0,64382.0,0.01577484]
[1721394660089,0.83973121,64383.0,64382.0,0.01577484]
[1721394660369,0.99411295,64383.0,64382.0,0.009174]
[1721394660781,1.30475522,64383.0,64382.0,0.009174]
[1721394660996,1.31875522,64383.0,64382.0,0.009174]
[1721394661356,1.33275522,64383.0,64382.0,0.009174]
[1721394661955,1.31875522,64383.0,64382.0,0.009174]
[1721394662153,1.33275522,64383.0,64382.0,0.009174]
[1721394662589,1.32775522,64383.0,64382.0,0.009174]
[1721394662760,1.43357844,64383.0,64382.0,0.009174]
[1721394663685,1.40557844,64383.0,64382.0,0.009174]
[1721394663922,1.41957844,64383.0,64382.0,0.009174]
[1721394664234,1.32775522,64383.0,64382.0,0.009174]
[1721394664439,1.31375522,64383.0,64382.0,0.009174]
[1721394664645,1.39861468,64383.0,64382.0,5e-07]
[1721394664809,1.41261468,64383.0,64382.0,5e-07]
[1721394665586,1.39859998,64383.0,64382.0,5e-07]
[1721394666134,1.28375794,64383.0,64382.0,5e-07]
[1721394666336,1.26975065,64383.0,64382.0,5e-07]
[1721394666694,0.97310965,64383.0,64382.0,5e-07]
[1721394666897,0.95910965,64383.0,64382.0,5e-07]
[1721394667304,0.98710965,64383.0,64382.0,0.0660005]
[1721394667557,0.21050765,64383.0,64382.0,0.1426005]
[1721394667894,0.04212591,64383.0,64382.0,0.14919792]
[1721394668012,0.186114,64383.0,64382.0,0.14919792]
[1721394668214,0.510755,64383.0,64382.0,0.1426005]
[1721394668414,0.53610081,64383.0,64382.0,0.1426005]
[1721394668643,0.53610081,64383.0,64382.0,0.14919792]
[1721394668893,0.22545981,64383.0,64382.0,0.14919792]
[1721394669057,0.21145981,64383.0,64382.0,0.14919792]
[1721394669257,0.22545981,64383.0,64382.0,0.14919792]
[1721394669488,0.69045436,64383.0,64382.0,0.14919792]
[1721394669841,1.13134938,64383.0,64382.0,0.00659792]
[1721394670035,1.62775167,64383.0,64382.0,5e-07]
[1721394670453,1.68688239,64383.0,64382.0,5e-07]
[1721394670646,2.03310888,64383.0,64382.0,5e-07]
[1721394670849,2.01910888,64383.0,64382.0,5e-07]
[1721394671253,2.03310888,64383.0,64382.0,5e-07]
[1721394671464,2.00510888,64383.0,64382.0,5e-07]
[1721394671905,1.59221386,64383.0,64382.0,5e-07]
[1721394672114,1.53362837,64383.0,64382.0,5e-07]
[1721394672321,1.16385665,64383.0,64382.0,5e-07]
[1721394672529,0.76237368,64383.0,64382.0,5e-07]
[1721394672741,0.77644049,64383.0,64382.0,5e-07]
[1721394672949,0.77644049,64383.0,64382.0,0.1403005]
[1721394672950,0.028,64383.0,64382.0,0.1403005]
[1721394673368,0.014,64383.0,64382.0,0.14690126]
[1721394673789,0.028,64383.0,64382.0,0.14690126]
[1721394673967,0.33770174,64383.0,64382.0,0.14690126]
[1721394674206,0.66434961,64383.0,64382.0,0.14690126]
[1721394674413,0.66434961,64383.0,64382.0,0.1403005]
[1721394674638,1.00299061,64383.0,64382.0,0.1403005]
[1721394674837,0.97299021,64383.0,64382.0,0.1403005]
[1721394675048,0.95899021,64383.0,64382.0,0.1403005]
[1721394675257,0.66234921,64383.0,64382.0,0.1403005]
[1721394675475,0.18332,64383.0,64382.0,0.1403005]
[1721394675681,0.21142104,64383.0,64382.0,0.14689148]
[1721394676082,0.19742104,64383.0,64382.0,0.14689148]
[1721394676865,0.18342104,64383.0,64382.0,0.14689148]
[1721394677062,0.19742104,64383.0,64382.0,0.14689148]
[1721394678258,0.04210104,64383.0,64382.0,0.14689148]
[1721394678592,0.04201122,64383.0,64382.0,0.14689148]
[1721394678793,0.04101122,64383.0,64382.0,0.14689148]
[1721394680480,0.21033122,64383.0,64382.0,0.14689148]
[1721394681084,0.04101122,64383.0,64382.0,0.14689148]
[1721394681281,0.05501122,64383.0,64382.0,0.14689148]
[1721394681685,0.05501607,64383.0,64382.0,0.14689148]
[1721394682070,0.98599981,64383.0,64382.0,0.06779148]
[1721394682274,1.38753633,64383.0,64382.0,5e-07]
[1721394682518,1.5418859,64383.0,64382.0,5e-07]
[1721394682721,1.5870148,64383.0,64382.0,5e-07]
[1721394683125,1.43266523,64383.0,64382.0,5e-07]
[1721394683318,1.53266523,64383.0,64382.0,5e-07]
[1721394683663,1.55566523,64383.0,64382.0,5e-07]
[1721394684651,1.55562344,64383.0,64382.0,5e-07]
[1721394685661,1.59053731,64383.0,64382.0,5e-07]
[1721394685926,1.74488688,64383.0,64382.0,5e-07]
[1721394686241,1.55562344,64383.0,64382.0,5e-07]
[1721394686449,1.60211492,64383.0,64382.0,5e-07]
[1721394686580,1.55562344,64383.0,64382.0,5e-07]
[1721394686775,1.66016152,64383.0,64382.0,5e-07]
[1721394687564,1.66899807,64383.0,64382.0,5e-07]
[1721394687780,1.56449764,64383.0,64382.0,5e-07]
[1721394688000,1.66906314,64383.0,64382.0,5e-07]
[1721394688205,2.20948315,64383.0,64382.0,5e-07]
[1721394688436,2.37038915,64383.0,64382.0,5e-07]
[1721394688649,2.37038915,64383.0,64374.0,0.009174]
[1721394688650,1.253751,64382.0,64381.0,5e-07]
[1721394688826,2.04061503,64382.0,64381.0,5e-07]
[1721394689095,2.1949646,64382.0,64381.0,5e-07]
[1721394689296,2.1949646,64382.0,64374.0,0.009174]
[1721394689297,1.546555,64375.0,64374.0,0.009174]
[1721394689498,2.12127403,64375.0,64374.0,0.009174]
[1721394689706,2.22127403,64375.0,64374.0,0.009174]
[1721394689913,2.24427403,64375.0,64374.0,0.009174]
[1721394690139,2.39404082,64375.0,64374.0,0.009174]
[1721394690595,2.39404082,64375.0,64350.0,0.009174]
[1721394690596,0.310751,64361.0,64350.0,0.009174]
[1721394690814,0.155397,64351.0,64350.0,0.009174]
[1721394691024,0.64857533,64351.0,64350.0,0.009174]
[1721394691228,0.02800159,64351.0,64350.0,0.147874]
[1721394691469,0.02800159,64351.0,64350.0,0.142874]
[1721394691678,0.155393,64353.0,64350.0,0.14984556]
[1721394691889,0.03079559,64352.0,64350.0,0.14984556]
[1721394692706,0.155397,64351.0,64350.0,0.14984556]
[1721394692898,0.18339859,64351.0,64350.0,0.14984556]
[1721394693119,0.49419359,64351.0,64350.0,0.14984556]
[1721394693533,0.49419359,64351.0,64350.0,0.142874]
[1721394693650,0.788987,64351.0,64350.0,0.142874]
[1721394693855,0.83527745,64351.0,64350.0,0.142874]
[1721394694060,0.83527745,64351.0,64350.0,0.004174]
[1721394694061,0.97765919,64351.0,64350.0,0.004174]
[1721394694495,1.10741685,64351.0,64350.0,0.004174]
[1721394694699,2.05259492,64351.0,64350.0,0.004174]
[1721394694903,2.30793608,64351.0,64350.0,0.004174]
[1721394695123,2.2857471,64351.0,64350.0,0.004174]
[1721394695335,2.32187452,64351.0,64350.0,0.004174]
[1721394695951,2.32187452,64351.0,64334.0,0.0651]
[1721394695952,0.155462,64324.0,64320.0,0.0651]
[1721394696174,0.045502,64324.0,64320.0,0.0651]
[1721394696374,0.155462,64324.0,64323.0,0.0161886]
[1721394696618,0.155462,64324.0,64323.0,0.009174]
[1721394696839,0.155461,64325.0,64323.0,0.009174]
[1721394697048,0.155462,64324.0,64323.0,0.009174]
[1721394697263,0.3215,64335.0,64323.0,0.009174]
[1721394697264,0.15546,64325.0,64323.0,0.009174]
[1721394697476,0.3215,64335.0,64323.0,0.009174]
[1721394697697,0.3215,64335.0,64324.0,0.1467]
[1721394697698,0.29996187,64334.0,64324.0,0.1467]
[1721394697901,0.155453,64328.0,64325.0,0.00701209]
[1721394698318,0.155456,64327.0,64325.0,0.00701209]
[1721394698730,0.25438174,64334.0,64325.0,0.00701209]
[1721394698731,0.310884,64333.0,64325.0,0.00701209]
[1721394698973,0.15438174,64332.0,64325.0,0.00701209]
[1721394699234,0.155449,64330.0,64325.0,0.00701209]
[1721394699445,0.014,64328.0,64325.0,0.00701209]
[1721394700026,0.014,64328.0,64327.0,0.155455]
[1721394700230,0.014,64328.0,64327.0,0.76394774]
[1721394700429,0.014,64328.0,64327.0,1.39281189]
[1721394701581,0.027,64328.0,64327.0,1.39281189]
[1721394701996,0.013,64328.0,64327.0,1.39281189]
[1721394702403,0.015,64328.0,64327.0,1.39281189]
[1721394702611,0.002,64328.0,64327.0,1.39281189]
[1721394702817,0.15542,64342.0,64336.0,0.0637]
[1721394703038,0.31085,64340.0,64336.0,0.0637]
[1721394703248,0.15438174,64342.0,64336.0,0.0637]
[1721394703249,0.002794,64339.0,64337.0,0.00639055]
[1721394703450,0.313638,64341.0,64336.0,0.0637]
[1721394703672,0.155431,64337.0,64336.0,0.0637]
[1721394703876,0.002794,64341.0,64336.0,0.0637]
[1721394703877,0.155424,64340.0,64336.0,0.07041812]
[1721394704080,0.002794,64339.0,64336.0,0.07041812]
[1721394704424,0.155429,64338.0,64336.0,0.07041812]
[1721394704622,0.62346974,64337.0,64336.0,0.07041812]
[1721394704872,0.155446,64331.0,64330.0,0.064]
[1721394705315,0.155446,64331.0,64330.0,0.07073505]
[1721394705316,0.466338,64331.0,64330.0,0.07073505]
[1721394705629,0.466338,64331.0,64323.0,0.009174]
[1721394705630,0.155451,64329.0,64323.0,0.009174]
[1721394705836,1.16541179,64324.0,64323.0,0.009174]
[1721394706006,1.24261874,64324.0,64323.0,0.009174]
[1721394706136,0.93169374,64324.0,64323.0,0.009174]
[1721394707772,0.155462,64325.0,64323.0,0.009174]
[1721394707992,0.15438174,64327.0,64323.0,0.009174]
[1721394708198,0.93169374,64324.0,64323.0,0.009174]
[1721394708410,1.24261874,64324.0,64323.0,0.009174]
[1721394708614,1.28823114,64324.0,64323.0,0.009174]
[1721394708816,1.45658163,64324.0,64323.0,0.009174]
[1721394709019,1.47058163,64324.0,64323.0,0.009174]
[1721394709231,1.45658163,64324.0,64323.0,0.009174]
[1721394710104,1.47058163,64324.0,64323.0,0.009174]
[1721394711156,1.31623206,64324.0,64323.0,0.009174]
[1721394711766,1.3162693,64324.0,64323.0,0.009174]
[1721394712393,1.6271943,64324.0,64323.0,0.009174]
[1721394712603,1.6271943,64324.0,64323.0,5e-07]
[1721394712604,1.3162693,64324.0,64323.0,5e-07]
[1721394712812,0.07365056,64324.0,64323.0,5e-07]
[1721394713014,0.183462,64324.0,64323.0,5e-07]
[1721394713226,0.64876874,64324.0,64323.0,5e-07]
[1721394713403,0.33784374,64324.0,64323.0,5e-07]
[1721394713636,0.64876874,64324.0,64323.0,5e-07]
[1721394713844,0.183462,64324.0,64323.0,5e-07]
[1721394714355,0.805312,64324.0,64323.0,5e-07]
[1721394714559,0.805312,64324.0,64316.0,0.009185]
[1721394714560,1.088339,64318.0,64316.0,0.009185]
[1721394714811,1.92814953,64318.0,64316.0,0.009185]
[1721394714980,2.07390878,64318.0,64316.0,0.009185]
[1721394715185,2.09690878,64318.0,64316.0,0.009185]
[1721394716012,2.11090878,64318.0,64316.0,0.009185]
[1721394716215,2.12490878,64318.0,64316.0,0.009185]
[1721394716451,1.79095478,64318.0,64316.0,0.009185]
[1721394716685,1.77695478,64318.0,64316.0,0.009185]
[1721394716913,1.69977999,64318.0,64316.0,0.009185]
[1721394717160,1.57822074,64318.0,64316.0,0.009185]
[1721394717370,0.68066461,64318.0,64316.0,0.009185]
[1721394717570,0.63481274,64318.0,64316.0,0.009185]
[1721394717751,0.94576674,64318.0,64316.0,0.009185]
[1721394718102,0.95976674,64318.0,64316.0,0.009185]
[1721394718664,0.028,64318.0,64316.0,0.009185]
[1721394718991,0.028,64318.0,64317.0,0.01936856]
[1721394719670,0.014,64318.0,64317.0,0.01936856]
[1721394719818,0.014,64318.0,64317.0,0.33032756]
[1721394719819,0.028,64318.0,64317.0,0.33032756]
[1721394720037,0.028,64318.0,64317.0,0.79676556]
[1721394720252,0.028,64318.0,64317.0,0.86336556]
[1721394720465,0.028,64318.0,64317.0,1.25312456]
[1721394720675,0.014,64318.0,64317.0,0.94216556]
[1721394720892,0.014,64318.0,64317.0,1.20036202]
[1721394721095,0.014,64318.0,64317.0,0.29386729]
[1721394721502,0.169477,64318.0,64317.0,0.29386729]
[1721394721703,0.014,64318.0,64317.0,0.14846729]
[1721394721908,0.155475,64319.0,64317.0,0.14846729]
[1721394722112,0.155473,64320.0,64317.0,0.14846729]
[1721394722316,0.023,64318.0,64317.0,0.14846729]
[1721394722537,0.009,64318.0,64317.0,0.14846729]
[1721394722940,0.05976708,64318.0,64317.0,0.14846729]
[1721394723354,0.310934,64323.0,64317.0,0.14846729]
[1721394723355,0.012,64319.0,64317.0,0.01936856]
[1721394723762,0.014,64318.0,64317.0,0.01936856]
[1721394724406,0.0598026,64318.0,64317.0,0.01936856]
[1721394725059,0.014,64318.0,64317.0,0.56800656]
[1721394725196,0.014,64318.0,64317.0,0.87896556]
[1721394725400,0.158253,64326.0,64317.0,0.41252756]
[1721394725609,0.002794,64324.0,64320.0,0.155472]
[1721394725798,0.04584063,64325.0,64320.0,0.155472]
[1721394725799,0.04584173,64323.0,64320.0,0.155472]
[1721394725993,0.04584173,64322.0,64321.0,0.01015717]
[1721394726257,0.04584173,64324.0,64321.0,0.01015717]
[1721394726486,0.04584173,64322.0,64321.0,0.01015717]
[1721394726692,0.51224373,64322.0,64321.0,0.01015717]
[1721394726864,0.51224373,64322.0,64317.0,0.091385]
[1721394726865,0.155474,64320.0,64317.0,0.009185]
[1721394727015,0.04584173,64319.0,64317.0,0.009185]
[1721394727220,0.04584173,64319.0,64318.0,0.01015897]
[1721394727425,0.20131673,64319.0,64318.0,0.01015897]
[1721394727627,0.04584173,64319.0,64318.0,0.01015897]
[1721394728915,0.16838174,64322.0,64318.0,0.01015897]
[1721394728916,0.20131273,64321.0,64318.0,0.01015897]
[1721394729129,0.04584173,64320.0,64319.0,0.155475]
[1721394729348,0.04584173,64320.0,64319.0,0.155473]
[1721394729349,0.013,64320.0,64319.0,0.155473]
[1721394729567,0.013,64320.0,64319.0,0.01015688]
[1721394729773,0.013,64320.0,64319.0,0.62218188]
[1721394729974,0.014,64322.0,64319.0,0.19429981]
[1721394729975,0.15547,64321.0,64319.0,0.19429981]
[1721394730182,0.155472,64320.0,64319.0,0.0652]
[1721394730387,0.013,64321.0,64319.0,0.07535244]
[1721394730590,0.027,64321.0,64319.0,0.07535244]
[1721394730795,0.027,64321.0,64320.0,0.155472]
[1721394731004,0.027,64321.0,64320.0,0.858862]
[1721394731206,0.027,64321.0,64320.0,1.17995735]
[1721394731410,0.027,64321.0,64320.0,1.30905975]
[1721394732452,0.014,64321.0,64320.0,0.99811475]
[1721394732657,0.00083,64323.0,64322.0,0.777337]
[1721394732863,0.00083,64323.0,64322.0,0.90643598]
[1721394733076,0.00083,64323.0,64322.0,0.91658215]
[1721394734326,0.01483,64323.0,64322.0,0.91658215]
[1721394734753,0.02483,64323.0,64322.0,0.91658215]
[1721394735557,0.02483,64323.0,64322.0,1.22751715]
[1721394735785,0.02483,64323.0,64322.0,1.37171715]
[1721394735962,0.02483,64323.0,64322.0,1.52609889]
[1721394736382,0.02483,64323.0,64322.0,1.52608081]
[1721394736588,0.01083,64323.0,64322.0,1.52608081]
[1721394737041,0.01083,64323.0,64322.0,1.83801581]
[1721394737454,0.01083,64323.0,64322.0,1.83701581]
[1721394737653,0.01083,64323.0,64322.0,1.83901581]
[1721394738516,0.01083,64323.0,64322.0,1.93901581]
[1721394738725,0.00083,64323.0,64322.0,1.98531034]
[1721394738937,0.00083,64323.0,64322.0,1.93900572]
[1721394739150,0.01083,64323.0,64322.0,1.93800572]
[1721394739569,0.00183,64323.0,64322.0,1.94200479]
[1721394739979,0.00283,64323.0,64322.0,2.34685962]
[1721394740174,0.00183,64323.0,64322.0,2.49983979]
[1721394740385,0.00183,64323.0,64322.0,2.5184518]
[1721394740816,0.00183,64323.0,64322.0,2.51845134]
[1721394741012,0.00083,64323.0,64322.0,2.51245134]
[1721394741240,0.00083,64323.0,64322.0,2.55875123]
[1721394741457,0.00083,64323.0,64322.0,2.20620468]
[1721394741680,0.00083,64323.0,64322.0,1.93700479]
[1721394742098,0.00083,64323.0,64322.0,1.93700312]
[1721394742717,0.00183,64323.0,64322.0,1.94200312]
[1721394743570,0.00083,64323.0,64322.0,1.93700312]
[1721394743781,0.00083,64323.0,64322.0,2.16490312]
[1721394743782,0.00183,64323.0,64322.0,2.16490312]
[1721394743987,0.00283,64323.0,64322.0,2.16990312]
[1721394744413,0.00183,64323.0,64322.0,1.94200312]
[1721394745022,0.00183,64323.0,64322.0,1.942]
[1721394745229,0.00183,64323.0,64322.0,1.937]
[1721394745230,0.00083,64323.0,64322.0,1.937]
[1721394745639,0.00183,64323.0,64322.0,1.942]
[1721394746267,0.00083,64323.0,64322.0,1.937]
[1721394746477,0.00183,64323.0,64322.0,1.942]
[1721394746683,0.00283,64323.0,64322.0,1.947]
[1721394746892,0.00183,64323.0,64322.0,1.942]
[1721394747306,0.00283,64323.0,64322.0,1.942]
[1721394747512,0.00383,64323.0,64322.0,1.947]
[1721394747916,0.00183,64323.0,64322.0,1.942]
[1721394748626,0.00183,64323.0,64322.0,1.937]
[1721394748851,0.00083,64323.0,64322.0,1.937]
[1721394749345,0.00183,64323.0,64322.0,1.942]
[1721394749823,0.00283,64323.0,64322.0,1.947]
[1721394750282,0.00083,64323.0,64322.0,1.937]
[1721394750524,0.00283,64323.0,64322.0,1.947]
[1721394751068,0.00183,64323.0,64322.0,1.942]
[1721394751279,0.00283,64323.0,64322.0,2.06383491]
[1721394751482,0.00283,64323.0,64322.0,2.19288946]
[1721394751725,0.00283,64323.0,64322.0,2.21149727]
[1721394751973,0.00183,64323.0,64322.0,2.51742954]
[1721394752210,0.00283,64323.0,64322.0,2.50382251]
[1721394752444,0.00283,64323.0,64322.0,2.52242954]
[1721394752678,0.00183,64323.0,64322.0,2.51742954]
[1721394753417,0.00283,64323.0,64322.0,2.52242954]
[1721394754384,0.00283,64323.0,64322.0,2.37476991]
[1721394754607,0.00283,64323.0,64322.0,2.50382256]
[1721394754835,0.00283,64323.0,64322.0,2.52242979]
[1721394755556,0.00283,64323.0,64322.0,1.96998756]
[1721394755793,0.00283,64323.0,64322.0,1.94698756]
[1721394756726,0.00083,64323.0,64322.0,1.93698756]
[1721394756898,0.00183,64323.0,64322.0,1.94198756]
[1721394757054,0.00283,64323.0,64322.0,1.94698756]
[1721394757489,0.00283,64323.0,64322.0,1.94200617]
[1721394757490,0.00183,64323.0,64322.0,1.94200617]
[1721394757859,0.00283,64323.0,64322.0,1.94700617]
[1721394758473,0.00383,64323.0,64322.0,1.95200617]
[1721394758925,0.00283,64323.0,64322.0,1.94700617]
[1721394759344,0.00383,64323.0,64322.0,1.95200617]
[1721394759562,0.304595,64323.0,64322.0,0.02514617]
[1721394759832,0.304595,64323.0,64322.0,0.01]
[1721394759833,0.66053225,64323.0,64322.0,0.01]
[1721394760034,0.97146225,64323.0,64322.0,0.01]
[1721394760240,1.12484399,64323.0,64322.0,0.005]
[1721394760689,1.12484941,64323.0,64322.0,0.005]
[1721394761135,1.12484941,64323.0,64317.0,0.009185]
[1721394761136,0.155477,64318.0,64317.0,0.009185]
[1721394761380,0.20148967,64318.0,64317.0,0.009185]
[1721394761884,0.65774367,64318.0,64317.0,0.009185]
[1721394762127,0.69057108,64318.0,64317.0,0.009185]
[1721394762366,0.65774367,64318.0,64317.0,0.009185]
[1721394763020,0.67074367,64318.0,64317.0,0.009185]
[1721394763451,0.65774367,64318.0,64317.0,0.009185]
[1721394763655,0.625731,64318.0,64317.0,0.009185]
[1721394763856,0.68486179,64318.0,64317.0,0.009185]
[1721394764078,0.67086179,64318.0,64317.0,0.009185]
[1721394764428,0.68486179,64318.0,64317.0,0.009185]
[1721394765273,0.67186179,64318.0,64317.0,0.009185]
[1721394765764,0.68486179,64318.0,64317.0,0.009185]
[1721394766753,0.37390779,64318.0,64317.0,0.009185]
[1721394766982,0.1723,64318.0,64317.0,0.009185]
[1721394767186,0.027,64318.0,64317.0,0.009185]
[1721394767372,0.027,64318.0,64317.0,0.02015274]
[1721394767614,0.027,64318.0,64317.0,0.48659074]
[1721394767819,0.027,64318.0,64317.0,0.79754974]
[1721394768021,0.027,64318.0,64317.0,1.10850874]
[1721394768457,0.027,64318.0,64317.0,0.79754974]
[1721394768677,0.013,64318.0,64317.0,0.79754974]
[1721394769097,0.009,64318.0,64317.0,0.79754974]
[1721394769511,0.013,64318.0,64317.0,0.79754974]
[1721394770970,0.013,64318.0,64317.0,0.02015274]
[1721394770971,0.0914,64318.0,64317.0,0.02015274]
[1721394771378,0.0914,64318.0,64317.0,0.009185]
[1721394772560,0.246877,64318.0,64317.0,0.009185]
[1721394773163,0.0914,64318.0,64317.0,0.009185]
[1721394773369,0.0914,64318.0,64317.0,0.02017036]
[1721394773567,0.013,64318.0,64317.0,0.17564936]
[1721394774054,0.013,64318.0,64317.0,0.48660836]
[1721394774267,0.013,64318.0,64317.0,0.17564936]
[1721394774671,0.013,64318.0,64317.0,0.02017036]
[1721394774898,0.013,64318.0,64317.0,0.17564936]
[1721394777300,0.013,64318.0,64317.0,0.02017036]
[1721394777698,0.013,64318.0,64317.0,0.02033528]
[1721394777901,0.013,64318.0,64317.0,0.17581428]
[1721394778725,0.013,64318.0,64317.0,0.48677328]
[1721394778925,0.013,64318.0,64317.0,0.17581428]
[1721394779778,0.013,64318.0,64317.0,0.02033528]
[1721394780152,0.053,64318.0,64317.0,0.02033528]
[1721394780350,0.053,64318.0,64317.0,0.17581428]
[1721394781910,0.053,64318.0,64317.0,0.48677328]
[1721394782901,0.053,64318.0,64317.0,1.17309128]
[1721394783828,0.053,64318.0,64317.0,1.10869128]
[1721394784973,0.053,64318.0,64317.0,1.23778489]
[1721394785977,0.053,64318.0,64317.0,1.10869128]
[1721394787390,0.053,64318.0,64317.0,1.23777639]
[1721394788538,0.053,64318.0,64317.0,1.10869128]
[1721394789155,0.053,64318.0,64317.0,1.23777806]
[1721394790916,0.053,64318.0,64317.0,1.23777788]
[1721394794420,0.053,64318.0,64317.0,0.92681888]
[1721394795346,0.053,64318.0,64317.0,0.61585988]
[1721394795974,0.1964,64318.0,64317.0,0.30490088]
[1721394796205,0.39750383,64318.0,64317.0,0.02033528]
[1721394796441,0.39750383,64318.0,64317.0,0.009185]
[1721394796653,0.24202683,64318.0,64317.0,0.009185]
[1721394797069,0.86283957,64318.0,64317.0,0.01904675]
[1721394797514,0.86282459,64318.0,64317.0,0.009185]
[1721394798020,0.24201185,64318.0,64317.0,0.009185]
[1721394798226,0.18141185,64318.0,64317.0,0.48548475]
[1721394799110,0.17241185,64318.0,64317.0,0.48548475]
[1721394799315,0.08961185,64318.0,64317.0,1.10740275]
[1721394799518,0.044,64318.0,64317.0,1.23651263]